[Event "*** Titled Tuesday Blitz"]
[Site "Chess.com"]
[Date "2020.04.21"]
[Round "3"]
[White "Sashadav97"]
[Black "Ekka83"]
[Result "1-0"]
[WhiteElo "2556"]
[BlackElo "2273"]
[TimeControl "180+1"]
[EndTime "10:27:22 PDT"]
[Termination "Sashadav97 won by checkmate"]

1. d4 {[%clk 0:03:00.9]} 1... Nf6 {[%clk 0:02:56.7]} 2. c4 {[%clk 0:03:01.3]}
2... g6 {[%clk 0:02:56.8]} 3. Nc3 {[%clk 0:03:01.1]} 3... Bg7 {[%clk 0:02:56.8]}
4. e4 {[%clk 0:03:01.4]} 4... O-O {[%clk 0:02:56.5]} 5. Be2 {[%clk 0:03:02]}
5... d6 {[%clk 0:02:56.8]} 6. Be3 {[%clk 0:03:02.6]} 6... e5 {[%clk 0:02:57]} 7.
d5 {[%clk 0:03:03.1]} 7... a5 {[%clk 0:02:56]} 8. g4 {[%clk 0:03:03]} 8... Na6
{[%clk 0:02:53.8]} 9. h4 {[%clk 0:03:01.9]} 9... Ne8 {[%clk 0:02:12.2]} 10. h5
{[%clk 0:03:00]} 10... f5 {[%clk 0:02:12.2]} 11. hxg6 {[%clk 0:02:41.4]} 11...
hxg6 {[%clk 0:02:13.1]} 12. gxf5 {[%clk 0:02:40.8]} 12... gxf5 {[%clk 0:02:13]}
13. Nf3 {[%clk 0:02:34.8]} 13... f4 {[%clk 0:02:11.7]} 14. Bd2 {[%clk
0:02:34.6]} 14... Nc5 {[%clk 0:02:08]} 15. Qc2 {[%clk 0:02:34.1]} 15... Bg4
{[%clk 0:02:06.6]} 16. O-O-O {[%clk 0:02:33.2]} 16... Kf7 {[%clk 0:02:02.2]} 17.
Rdg1 {[%clk 0:02:29.7]} 17... Bxf3 {[%clk 0:02:01.8]} 18. Bxf3 {[%clk
0:02:30.6]} 18... Nf6 {[%clk 0:02:02.3]} 19. Rg2 {[%clk 0:02:15.3]} 19... Rh8
{[%clk 0:01:57.7]} 20. Rhg1 {[%clk 0:02:15.6]} 20... Rh7 {[%clk 0:01:50.2]} 21.
Ne2 {[%clk 0:02:07.5]} 21... Qd7 {[%clk 0:01:45.4]} 22. Bg4 {[%clk 0:01:41.6]}
22... Nxg4 {[%clk 0:01:39.4]} 23. Rxg4 {[%clk 0:01:42.5]} 23... Bf6 {[%clk
0:01:31.4]} 24. Nxf4 {[%clk 0:01:33.8]} 24... exf4 {[%clk 0:01:04.3]} 25. e5
{[%clk 0:01:31.9]} 25... Rah8 {[%clk 0:00:56.1]} 26. Qg6+ {[%clk 0:01:24.2]}
26... Kf8 {[%clk 0:00:15.4]} 27. Qxf6+ {[%clk 0:01:22]} 27... Qf7 {[%clk
0:00:15.7]} 28. Qd8+ {[%clk 0:01:22.4]} 28... Qe8 {[%clk 0:00:16]} 29. Rg8+
{[%clk 0:01:22.1]} 29... Rxg8 {[%clk 0:00:16.2]} 30. Rxg8+ {[%clk 0:01:22.6]}
30... Kxg8 {[%clk 0:00:16.6]} 31. Qxe8+ {[%clk 0:01:23.2]} 31... Kg7 {[%clk
0:00:17.3]} 32. e6 {[%clk 0:01:21.3]} 32... Rh1+ {[%clk 0:00:16.3]} 33. Kc2
{[%clk 0:01:21.5]} 33... Rh2 {[%clk 0:00:15.6]} 34. Qf7+ {[%clk 0:01:21.6]}
34... Kh8 {[%clk 0:00:15.3]} 35. Bc3# {[%clk 0:01:21.7]} 1-0

[Event "*** Titled Tuesday Blitz"]
[Site "Chess.com"]
[Date "2020.04.21"]
[Round "3"]
[White "Tapuah"]
[Black "AndrewMaco"]
[Result "1-0"]
[WhiteElo "2850"]
[BlackElo "2568"]
[TimeControl "180+1"]
[EndTime "10:27:24 PDT"]
[Termination "Tapuah won by resignation"]

1. e4 {[%clk 0:03:00.9]} 1... c6 {[%clk 0:02:57.7]} 2. d4 {[%clk 0:03:00.2]}
2... d5 {[%clk 0:02:58.6]} 3. e5 {[%clk 0:03:00.6]} 3... Bf5 {[%clk 0:02:59.2]}
4. Nf3 {[%clk 0:03:01.2]} 4... e6 {[%clk 0:02:59.3]} 5. Be2 {[%clk 0:03:01.5]}
5... Ne7 {[%clk 0:03:00]} 6. c3 {[%clk 0:03:00.6]} 6... Nd7 {[%clk 0:02:59.7]}
7. O-O {[%clk 0:02:59.8]} 7... c5 {[%clk 0:03:00.1]} 8. dxc5 {[%clk 0:02:57.3]}
8... Nxc5 {[%clk 0:03:00.1]} 9. Nd4 {[%clk 0:02:57.4]} 9... Bg6 {[%clk
0:02:58.7]} 10. Be3 {[%clk 0:02:57.5]} 10... Nc6 {[%clk 0:02:58.4]} 11. f4
{[%clk 0:02:53.5]} 11... Ne4 {[%clk 0:02:55.5]} 12. Nd2 {[%clk 0:02:52.5]} 12...
Bc5 {[%clk 0:02:53.7]} 13. N2f3 {[%clk 0:02:41.6]} 13... O-O {[%clk 0:02:51]}
14. Kh1 {[%clk 0:02:39.4]} 14... Bb6 {[%clk 0:02:49.6]} 15. g4 {[%clk
0:02:34.1]} 15... Qd7 {[%clk 0:02:38]} 16. Qe1 {[%clk 0:02:15.9]} 16... f6
{[%clk 0:01:18.8]} 17. f5 {[%clk 0:02:08.7]} 17... fxe5 {[%clk 0:01:17.2]} 18.
fxg6 {[%clk 0:02:03.5]} 18... exd4 {[%clk 0:01:16.7]} 19. gxh7+ {[%clk
0:02:02.8]} 19... Kh8 {[%clk 0:01:16.7]} 20. cxd4 {[%clk 0:02:01.8]} 20... e5
{[%clk 0:01:15.8]} 21. Nh4 {[%clk 0:01:45.7]} 21... Kxh7 {[%clk 0:01:15.7]} 22.
Nf5 {[%clk 0:01:44.8]} 22... Nxd4 {[%clk 0:01:14.1]} 23. Bxd4 {[%clk 0:01:40.8]}
23... Bxd4 {[%clk 0:01:11.8]} 24. Qh4+ {[%clk 0:01:40]} 24... Kg8 {[%clk
0:01:11.9]} 25. Ne7+ {[%clk 0:01:38.8]} 25... Qxe7 {[%clk 0:00:58.9]} 26. Qxe7
{[%clk 0:01:38]} 26... Nf2+ {[%clk 0:00:59.3]} 27. Kg2 {[%clk 0:01:34.9]} 27...
Rf7 {[%clk 0:00:53.1]} 28. Qe6 {[%clk 0:01:33.1]} 28... Rf8 {[%clk 0:00:49.1]}
29. Rac1 {[%clk 0:01:24.8]} 29... Kh8 {[%clk 0:00:46.1]} 30. Rc8 {[%clk
0:01:23.8]} 30... Rxc8 {[%clk 0:00:43.9]} 31. Qxf7 {[%clk 0:01:22.6]} 31... Ne4
{[%clk 0:00:40.9]} 32. Qxd5 {[%clk 0:01:17.7]} 32... Nf6 {[%clk 0:00:38.9]} 33.
Rxf6 {[%clk 0:01:16.3]} 33... gxf6 {[%clk 0:00:38.5]} 34. Bd3 {[%clk 0:01:15.6]}
34... Rg8 {[%clk 0:00:35.8]} 35. Kf3 {[%clk 0:01:13.1]} 35... Bxb2 {[%clk
0:00:33.9]} 36. Qf7 {[%clk 0:01:11.5]} 36... Rg7 {[%clk 0:00:33.6]} 37. Qf8+
{[%clk 0:01:11.3]} 1-0

[Event "*** Titled Tuesday Blitz"]
[Site "Chess.com"]
[Date "2020.04.21"]
[Round "3"]
[White "eldur16"]
[Black "fridaywins"]
[Result "0-1"]
[WhiteElo "2527"]
[BlackElo "2296"]
[TimeControl "180+1"]
[EndTime "10:27:24 PDT"]
[Termination "fridaywins won by resignation"]

1. c4 {[%clk 0:03:00.9]} 1... e5 {[%clk 0:02:59.1]} 2. g3 {[%clk 0:02:59]} 2...
Nf6 {[%clk 0:02:58.4]} 3. Bg2 {[%clk 0:02:58.4]} 3... c6 {[%clk 0:02:58.7]} 4.
d4 {[%clk 0:02:57.5]} 4... Bb4+ {[%clk 0:02:57.2]} 5. Bd2 {[%clk 0:02:56.5]}
5... Bxd2+ {[%clk 0:02:55.8]} 6. Qxd2 {[%clk 0:02:56.4]} 6... d6 {[%clk
0:02:56]} 7. Nc3 {[%clk 0:02:55.5]} 7... O-O {[%clk 0:02:55]} 8. e3 {[%clk
0:02:55.1]} 8... Nbd7 {[%clk 0:02:51.7]} 9. Nge2 {[%clk 0:02:54.7]} 9... Qe7
{[%clk 0:02:51.9]} 10. O-O {[%clk 0:02:49]} 10... a6 {[%clk 0:02:52]} 11. d5
{[%clk 0:02:47.5]} 11... c5 {[%clk 0:02:50.7]} 12. e4 {[%clk 0:02:42.8]} 12...
Rb8 {[%clk 0:02:45.2]} 13. a4 {[%clk 0:02:42]} 13... Ne8 {[%clk 0:02:39.8]} 14.
Rab1 {[%clk 0:02:40]} 14... Nc7 {[%clk 0:02:39.2]} 15. b4 {[%clk 0:02:37.2]}
15... cxb4 {[%clk 0:02:36.9]} 16. Rxb4 {[%clk 0:02:36.4]} 16... Nc5 {[%clk
0:02:37.8]} 17. a5 {[%clk 0:02:34.2]} 17... f5 {[%clk 0:02:35.3]} 18. exf5
{[%clk 0:02:30.4]} 18... Bxf5 {[%clk 0:02:34.6]} 19. Qe3 {[%clk 0:02:20.9]}
19... Qd7 {[%clk 0:02:27.6]} 20. f3 {[%clk 0:02:01.7]} 20... Rbe8 {[%clk
0:02:19.8]} 21. Ne4 {[%clk 0:01:57.8]} 21... Bxe4 {[%clk 0:02:15.9]} 22. fxe4
{[%clk 0:01:57.3]} 22... Rxf1+ {[%clk 0:02:15.6]} 23. Bxf1 {[%clk 0:01:57.2]}
23... Rf8 {[%clk 0:02:16.5]} 24. Bg2 {[%clk 0:01:52.6]} 24... Ne8 {[%clk
0:02:16.3]} 25. Nc3 {[%clk 0:01:39.4]} 25... Nf6 {[%clk 0:02:13.2]} 26. h3
{[%clk 0:01:38.9]} 26... Qc7 {[%clk 0:02:12]} 27. g4 {[%clk 0:01:27.5]} 27...
Qxa5 {[%clk 0:02:08.1]} 28. Rb1 {[%clk 0:01:27]} 28... Qc7 {[%clk 0:02:02.1]}
29. Rf1 {[%clk 0:01:22.6]} 29... Nfd7 {[%clk 0:02:01.1]} 30. Rf5 {[%clk
0:01:19.8]} 30... Nb6 {[%clk 0:01:53.2]} 31. Rxf8+ {[%clk 0:01:13.8]} 31... Kxf8
{[%clk 0:01:52.2]} 32. Bf1 {[%clk 0:01:13.6]} 32... Qf7 {[%clk 0:01:48.9]} 33.
Ne2 {[%clk 0:01:11.1]} 33... Nxc4 {[%clk 0:01:47.1]} 34. Qc1 {[%clk 0:01:07.3]}
34... b5 {[%clk 0:01:43.5]} 35. Ng3 {[%clk 0:01:05.6]} 35... Qf4 {[%clk
0:01:42]} 36. Qe1 {[%clk 0:00:59.3]} 36... Ne3 {[%clk 0:01:34.8]} 37. Be2 {[%clk
0:00:53.9]} 37... g6 {[%clk 0:01:24.5]} 38. Kh1 {[%clk 0:00:26.8]} 38... Nxe4
{[%clk 0:01:20.2]} 0-1

[Event "*** Titled Tuesday Blitz"]
[Site "Chess.com"]
[Date "2020.04.21"]
[Round "3"]
[White "EmmaChess"]
[Black "Nastya_Rakhmangulova"]
[Result "1-0"]
[WhiteElo "2592"]
[BlackElo "2373"]
[TimeControl "180+1"]
[EndTime "10:27:25 PDT"]
[Termination "EmmaChess won by resignation"]

1. b3 {[%clk 0:03:00.9]} 1... e5 {[%clk 0:02:59.5]} 2. Bb2 {[%clk 0:03:00]} 2...
Nc6 {[%clk 0:02:59.5]} 3. g3 {[%clk 0:02:59.1]} 3... d6 {[%clk 0:02:40.7]} 4.
Bg2 {[%clk 0:02:54.1]} 4... g6 {[%clk 0:02:41.1]} 5. c4 {[%clk 0:02:53.3]} 5...
Bg7 {[%clk 0:02:41.4]} 6. e3 {[%clk 0:02:52.9]} 6... Nge7 {[%clk 0:02:41.1]} 7.
Ne2 {[%clk 0:02:53.3]} 7... O-O {[%clk 0:02:41.1]} 8. d4 {[%clk 0:02:53.8]} 8...
exd4 {[%clk 0:02:34.7]} 9. Nxd4 {[%clk 0:02:53.4]} 9... Nxd4 {[%clk 0:02:16.5]}
10. Bxd4 {[%clk 0:02:54.3]} 10... Bxd4 {[%clk 0:02:14.9]} 11. Qxd4 {[%clk
0:02:55.2]} 11... Nc6 {[%clk 0:02:09.4]} 12. Qb2 {[%clk 0:02:51.4]} 12... Bg4
{[%clk 0:02:06]} 13. h3 {[%clk 0:02:49.2]} 13... Bf5 {[%clk 0:02:05.2]} 14. g4
{[%clk 0:02:46.5]} 14... Bxb1 {[%clk 0:02:00.5]} 15. Rxb1 {[%clk 0:02:32.9]}
15... Qh4 {[%clk 0:01:52.2]} 16. O-O {[%clk 0:02:22.8]} 16... h5 {[%clk
0:01:51.7]} 17. gxh5 {[%clk 0:02:21]} 17... Qxh5 {[%clk 0:01:52.6]} 18. Rbd1
{[%clk 0:02:17.7]} 18... Ne5 {[%clk 0:01:38.5]} 19. f4 {[%clk 0:01:59.3]} 19...
Nc6 {[%clk 0:01:37.1]} 20. Rd5 {[%clk 0:01:55.4]} 20... f5 {[%clk 0:01:37]} 21.
e4 {[%clk 0:01:54.9]} 21... Rae8 {[%clk 0:01:34.8]} 22. e5 {[%clk 0:01:53.2]}
22... dxe5 {[%clk 0:01:01.3]} 23. Rd7 {[%clk 0:01:51.5]} 23... Kh8 {[%clk
0:00:26.6]} 24. Bxc6 {[%clk 0:01:29]} 24... bxc6 {[%clk 0:00:25.9]} 25. fxe5
{[%clk 0:01:28.8]} 25... Re6 {[%clk 0:00:17.7]} 26. Kh2 {[%clk 0:01:13.2]} 26...
Rfe8 {[%clk 0:00:16.4]} 27. Rxc7 {[%clk 0:01:11.7]} 27... Rxe5 {[%clk
0:00:13.5]} 28. Re1 {[%clk 0:01:10.4]} 28... Qe2+ {[%clk 0:00:13.6]} 29. Rxe2
{[%clk 0:01:09.2]} 1-0

[Event "*** Titled Tuesday Blitz"]
[Site "Chess.com"]
[Date "2020.04.21"]
[Round "3"]
[White "aNaartjieZA"]
[Black "VinzentSpitzl"]
[Result "1-0"]
[WhiteElo "2589"]
[BlackElo "2366"]
[TimeControl "180+1"]
[EndTime "10:27:30 PDT"]
[Termination "aNaartjieZA won by resignation"]

1. e4 {[%clk 0:03:00.9]} 1... c5 {[%clk 0:02:57.9]} 2. Nf3 {[%clk 0:03:01.1]}
2... d6 {[%clk 0:02:58.4]} 3. g3 {[%clk 0:03:01.3]} 3... Nc6 {[%clk 0:02:57.2]}
4. Bg2 {[%clk 0:03:01.4]} 4... g6 {[%clk 0:02:57.8]} 5. O-O {[%clk 0:03:01.6]}
5... Bg7 {[%clk 0:02:58.3]} 6. c3 {[%clk 0:03:02.2]} 6... Nf6 {[%clk 0:02:58.7]}
7. Re1 {[%clk 0:03:02.5]} 7... O-O {[%clk 0:02:58.3]} 8. h3 {[%clk 0:03:03.1]}
8... e5 {[%clk 0:02:57.2]} 9. d3 {[%clk 0:03:03.4]} 9... Be6 {[%clk 0:02:55.1]}
10. a3 {[%clk 0:03:03]} 10... h6 {[%clk 0:02:55.1]} 11. b4 {[%clk 0:03:02.8]}
11... a6 {[%clk 0:02:50.4]} 12. Nbd2 {[%clk 0:02:54]} 12... b5 {[%clk
0:02:44.8]} 13. Bb2 {[%clk 0:02:51.7]} 13... Qb6 {[%clk 0:02:36.9]} 14. d4
{[%clk 0:02:43.7]} 14... cxd4 {[%clk 0:02:33.5]} 15. cxd4 {[%clk 0:02:43.4]}
15... exd4 {[%clk 0:02:29.7]} 16. Nb3 {[%clk 0:02:42.9]} 16... Bxb3 {[%clk
0:02:12.6]} 17. Qxb3 {[%clk 0:02:43.8]} 17... Nd7 {[%clk 0:02:12.9]} 18. Rad1
{[%clk 0:02:34.1]} 18... Nde5 {[%clk 0:02:00.4]} 19. Nxd4 {[%clk 0:02:13.1]}
19... Nc4 {[%clk 0:01:59.2]} 20. Nxc6 {[%clk 0:02:09]} 20... Bxb2 {[%clk
0:01:46.6]} 21. Ne7+ {[%clk 0:02:08.7]} 21... Kg7 {[%clk 0:01:39.6]} 22. a4
{[%clk 0:02:03.4]} 22... Bd4 {[%clk 0:01:29.6]} 23. Re2 {[%clk 0:01:58.7]} 23...
Rfe8 {[%clk 0:01:18]} 24. a5 {[%clk 0:01:56.4]} 24... Qb7 {[%clk 0:01:01.6]} 25.
Nf5+ {[%clk 0:01:49.1]} 25... gxf5 {[%clk 0:00:52.1]} 26. Rxd4 {[%clk
0:01:48.2]} 26... fxe4 {[%clk 0:00:41]} 27. Bxe4 {[%clk 0:01:41.8]} 27... Qd7
{[%clk 0:00:41.1]} 28. Qf3 {[%clk 0:01:33.5]} 28... Rac8 {[%clk 0:00:35.6]} 29.
Bf5 {[%clk 0:01:20.2]} 29... Qb7 {[%clk 0:00:05]} 30. Qxb7 {[%clk 0:01:15]} 1-0

[Event "*** Titled Tuesday Blitz"]
[Site "Chess.com"]
[Date "2020.04.21"]
[Round "3"]
[White "Shant_Sargsyan"]
[Black "Nikolakis2014"]
[Result "1-0"]
[WhiteElo "2990"]
[BlackElo "2685"]
[TimeControl "180+1"]
[EndTime "10:27:31 PDT"]
[Termination "Shant_Sargsyan won by resignation"]

1. d4 {[%clk 0:03:00.9]} 1... Nf6 {[%clk 0:02:59.5]} 2. c4 {[%clk 0:03:00.5]}
2... e6 {[%clk 0:02:59.7]} 3. Nf3 {[%clk 0:03:00.1]} 3... d5 {[%clk 0:02:59.4]}
4. Nc3 {[%clk 0:02:59.8]} 4... Be7 {[%clk 0:02:59]} 5. Bf4 {[%clk 0:02:59.2]}
5... O-O {[%clk 0:02:58.6]} 6. e3 {[%clk 0:02:59.4]} 6... Nbd7 {[%clk
0:02:57.2]} 7. Be2 {[%clk 0:02:59.5]} 7... dxc4 {[%clk 0:02:51]} 8. O-O {[%clk
0:02:58.6]} 8... a6 {[%clk 0:02:50.9]} 9. a4 {[%clk 0:02:58.1]} 9... b6 {[%clk
0:02:50.7]} 10. Bxc4 {[%clk 0:02:51.5]} 10... Bb7 {[%clk 0:02:50.7]} 11. Qe2
{[%clk 0:02:45.6]} 11... c5 {[%clk 0:02:44.1]} 12. Rfd1 {[%clk 0:02:45.1]} 12...
cxd4 {[%clk 0:02:43.4]} 13. Rxd4 {[%clk 0:02:39.2]} 13... Bc5 {[%clk 0:02:40.1]}
14. Rd2 {[%clk 0:02:29.3]} 14... Bb4 {[%clk 0:02:39.1]} 15. Rad1 {[%clk
0:02:26.1]} 15... Bxc3 {[%clk 0:02:34.2]} 16. bxc3 {[%clk 0:02:23.5]} 16... Qc8
{[%clk 0:02:34.4]} 17. Rd6 {[%clk 0:02:08.6]} 17... Re8 {[%clk 0:02:22.9]} 18.
Bg3 {[%clk 0:01:58.3]} 18... Bc6 {[%clk 0:01:57.5]} 19. Ne5 {[%clk 0:01:41.6]}
19... Bxa4 {[%clk 0:01:42.3]} 20. R1d4 {[%clk 0:01:40.2]} 20... Nc5 {[%clk
0:01:16.4]} 21. Rxb6 {[%clk 0:01:30]} 21... Bb5 {[%clk 0:01:15.9]} 22. Qf3
{[%clk 0:01:19.7]} 22... Ncd7 {[%clk 0:01:06]} 23. Rb7 {[%clk 0:01:04.3]} 23...
Nxe5 {[%clk 0:00:58.1]} 24. Bxe5 {[%clk 0:01:02.7]} 24... Bc6 {[%clk 0:00:54.2]}
25. Qxf6 {[%clk 0:00:59.6]} 1-0

[Event "*** Titled Tuesday Blitz"]
[Site "Chess.com"]
[Date "2020.04.21"]
[Round "3"]
[White "IMRosen"]
[Black "Shaman91"]
[Result "0-1"]
[WhiteElo "2468"]
[BlackElo "2848"]
[TimeControl "180+1"]
[EndTime "10:27:31 PDT"]
[Termination "Shaman91 won by resignation"]

1. d4 {[%clk 0:03:00.9]} 1... g6 {[%clk 0:02:49]} 2. e4 {[%clk 0:03:00.5]} 2...
Bg7 {[%clk 0:02:49.2]} 3. Nf3 {[%clk 0:03:00.2]} 3... c6 {[%clk 0:02:44.5]} 4.
Nc3 {[%clk 0:02:53.6]} 4... d5 {[%clk 0:02:44.1]} 5. h3 {[%clk 0:02:54.1]} 5...
dxe4 {[%clk 0:02:44.1]} 6. Nxe4 {[%clk 0:02:54.3]} 6... Nf6 {[%clk 0:02:45]} 7.
Nxf6+ {[%clk 0:02:49.4]} 7... exf6 {[%clk 0:02:45.9]} 8. Be2 {[%clk 0:02:49.6]}
8... O-O {[%clk 0:02:46.5]} 9. O-O {[%clk 0:02:50.3]} 9... Be6 {[%clk
0:02:46.5]} 10. Be3 {[%clk 0:02:50.1]} 10... a5 {[%clk 0:02:45.3]} 11. c4 {[%clk
0:02:43.5]} 11... Na6 {[%clk 0:02:43.6]} 12. Qd2 {[%clk 0:02:39.5]} 12... Nc7
{[%clk 0:02:40.1]} 13. Rac1 {[%clk 0:02:34.9]} 13... Re8 {[%clk 0:02:39.8]} 14.
Rfd1 {[%clk 0:02:34.6]} 14... a4 {[%clk 0:02:33.9]} 15. Bf1 {[%clk 0:02:27.6]}
15... Qd7 {[%clk 0:02:33.5]} 16. Bh6 {[%clk 0:02:25.1]} 16... Rad8 {[%clk
0:02:30.1]} 17. Bxg7 {[%clk 0:02:23.7]} 17... Kxg7 {[%clk 0:02:31]} 18. Qc3
{[%clk 0:02:23.9]} 18... Bf5 {[%clk 0:02:25.1]} 19. Rd2 {[%clk 0:02:18.8]} 19...
Be4 {[%clk 0:02:23.1]} 20. Rcd1 {[%clk 0:02:18.2]} 20... Qe7 {[%clk 0:02:16]}
21. Re1 {[%clk 0:01:59.8]} 21... Qd6 {[%clk 0:02:13.4]} 22. Red1 {[%clk
0:01:41.4]} 22... b5 {[%clk 0:02:00.1]} 23. b3 {[%clk 0:01:39.3]} 23... axb3
{[%clk 0:01:58.7]} 24. axb3 {[%clk 0:01:39.4]} 24... bxc4 {[%clk 0:01:53.5]} 25.
bxc4 {[%clk 0:01:40.3]} 25... Ra8 {[%clk 0:01:53.2]} 26. Ra1 {[%clk 0:01:02.8]}
26... Rxa1 {[%clk 0:01:49.8]} 27. Qxa1 {[%clk 0:01:02.8]} 27... Bxf3 {[%clk
0:01:50.1]} 28. gxf3 {[%clk 0:01:03.7]} 28... Ne6 {[%clk 0:01:45.6]} 29. d5
{[%clk 0:00:27.1]} 29... Ng5 {[%clk 0:01:43.3]} 30. Qd1 {[%clk 0:00:17]} 30...
Re1 {[%clk 0:01:29.9]} 31. Qb3 {[%clk 0:00:09.2]} 31... Nxh3+ {[%clk 0:01:26.5]}
32. Kg2 {[%clk 0:00:08.2]} 32... Nf4+ {[%clk 0:01:26.4]} 33. Kg1 {[%clk
0:00:08.4]} 33... Qe5 {[%clk 0:01:23.9]} 34. Rd1 {[%clk 0:00:04.1]} 34... Qg5+
{[%clk 0:01:22]} 35. Kh2 {[%clk 0:00:04.2]} 35... Rxf1 {[%clk 0:01:21.6]} 0-1

[Event "*** Titled Tuesday Blitz"]
[Site "Chess.com"]
[Date "2020.04.21"]
[Round "3"]
[White "annamaja"]
[Black "littleozy"]
[Result "1-0"]
[WhiteElo "2215"]
[BlackElo "2398"]
[TimeControl "180+1"]
[EndTime "10:27:35 PDT"]
[Termination "annamaja won by resignation"]

1. e4 {[%clk 0:02:10.2]} 1... c6 {[%clk 0:02:58.5]} 2. d4 {[%clk 0:02:08.6]}
2... d5 {[%clk 0:02:59.4]} 3. exd5 {[%clk 0:02:08.7]} 3... cxd5 {[%clk
0:02:57.9]} 4. Nf3 {[%clk 0:02:08.9]} 4... Nc6 {[%clk 0:02:58]} 5. Bd3 {[%clk
0:02:07.8]} 5... Nf6 {[%clk 0:02:56.8]} 6. c3 {[%clk 0:02:07.8]} 6... Bg4 {[%clk
0:02:56]} 7. O-O {[%clk 0:02:07.6]} 7... e6 {[%clk 0:02:56]} 8. h3 {[%clk
0:02:07.4]} 8... Bh5 {[%clk 0:02:55.6]} 9. Nbd2 {[%clk 0:02:06.3]} 9... Be7
{[%clk 0:02:54.9]} 10. Re1 {[%clk 0:02:06.2]} 10... O-O {[%clk 0:02:54.6]} 11.
a4 {[%clk 0:02:04.7]} 11... Rc8 {[%clk 0:02:52.2]} 12. b4 {[%clk 0:02:04.5]}
12... a6 {[%clk 0:02:47.6]} 13. Qb3 {[%clk 0:02:04.2]} 13... Qc7 {[%clk
0:02:38.2]} 14. Bb2 {[%clk 0:01:58.6]} 14... Bg6 {[%clk 0:02:27.9]} 15. Bxg6
{[%clk 0:01:56.1]} 15... hxg6 {[%clk 0:02:28.8]} 16. b5 {[%clk 0:01:56]} 16...
Na5 {[%clk 0:02:28.2]} 17. Qc2 {[%clk 0:01:49.8]} 17... Nc4 {[%clk 0:02:27.7]}
18. Nxc4 {[%clk 0:01:39.1]} 18... Qxc4 {[%clk 0:02:28.6]} 19. Qe2 {[%clk
0:01:30.4]} 19... Ne4 {[%clk 0:02:23.1]} 20. Qxc4 {[%clk 0:01:14.6]} 20... Rxc4
{[%clk 0:02:22.1]} 21. Ne5 {[%clk 0:01:15.1]} 21... Rc7 {[%clk 0:02:20.3]} 22.
Rec1 {[%clk 0:00:50.8]} 22... Rfc8 {[%clk 0:02:18]} 23. b6 {[%clk 0:00:50.6]}
23... Rxc3 {[%clk 0:01:51.6]} 24. Bxc3 {[%clk 0:00:50.1]} 24... Nxc3 {[%clk
0:01:52.5]} 25. Rc2 {[%clk 0:00:46.4]} 25... Bb4 {[%clk 0:01:49.7]} 26. Kf1
{[%clk 0:00:39.3]} 26... a5 {[%clk 0:01:47.1]} 27. Nd3 {[%clk 0:00:34.7]} 27...
Rc6 {[%clk 0:01:40]} 28. Nxb4 {[%clk 0:00:27.8]} 28... axb4 {[%clk 0:01:40.9]}
29. a5 {[%clk 0:00:28.3]} 29... Rc4 {[%clk 0:01:32.3]} 30. a6 {[%clk 0:00:27.8]}
30... b3 {[%clk 0:01:24.3]} 31. Rb2 {[%clk 0:00:19.2]} 31... bxa6 {[%clk
0:01:18.6]} 32. Rxb3 {[%clk 0:00:16.6]} 1-0

[Event "*** Titled Tuesday Blitz"]
[Site "Chess.com"]
[Date "2020.04.21"]
[Round "3"]
[White "Willychess95"]
[Black "BabyBoss31"]
[Result "1-0"]
[WhiteElo "2585"]
[BlackElo "2364"]
[TimeControl "180+1"]
[EndTime "10:27:38 PDT"]
[Termination "Willychess95 won by resignation"]

1. e4 {[%clk 0:03:00.2]} 1... e6 {[%clk 0:02:59.8]} 2. d3 {[%clk 0:02:59.3]}
2... d5 {[%clk 0:02:58.2]} 3. Nd2 {[%clk 0:03:00]} 3... Nf6 {[%clk 0:02:55.4]}
4. Ngf3 {[%clk 0:02:59.1]} 4... c5 {[%clk 0:02:53.7]} 5. g3 {[%clk 0:02:59.2]}
5... Nc6 {[%clk 0:02:53.3]} 6. Bg2 {[%clk 0:02:59.2]} 6... Be7 {[%clk
0:02:49.2]} 7. O-O {[%clk 0:02:57.8]} 7... O-O {[%clk 0:02:49.8]} 8. Re1 {[%clk
0:02:57.8]} 8... b5 {[%clk 0:02:43.4]} 9. e5 {[%clk 0:02:54.5]} 9... Nd7 {[%clk
0:02:41.5]} 10. Nf1 {[%clk 0:02:53.6]} 10... Bb7 {[%clk 0:02:36.9]} 11. h4
{[%clk 0:02:52.7]} 11... Qc7 {[%clk 0:02:33.6]} 12. Bf4 {[%clk 0:02:52.9]} 12...
a5 {[%clk 0:02:23.3]} 13. Ne3 {[%clk 0:02:51]} 13... Nd4 {[%clk 0:02:02.9]} 14.
Nxd4 {[%clk 0:02:45.1]} 14... cxd4 {[%clk 0:02:03.8]} 15. Nxd5 {[%clk
0:02:44.2]} 15... Bxd5 {[%clk 0:01:50]} 16. Bxd5 {[%clk 0:02:43.5]} 16... exd5
{[%clk 0:01:50.9]} 17. e6 {[%clk 0:02:43.8]} 17... Bd6 {[%clk 0:01:48.5]} 18.
Bxd6 {[%clk 0:02:43.2]} 18... Qxd6 {[%clk 0:01:49.4]} 19. exd7 {[%clk
0:02:43.8]} 19... Qxd7 {[%clk 0:01:50.3]} 20. Qf3 {[%clk 0:02:39.3]} 20... Rac8
{[%clk 0:01:45.6]} 21. Re2 {[%clk 0:02:38.9]} 21... Rc7 {[%clk 0:01:45]} 22.
Rae1 {[%clk 0:02:33.3]} 22... h6 {[%clk 0:01:41.3]} 23. Qf4 {[%clk 0:02:22.4]}
23... Rfc8 {[%clk 0:01:37.4]} 24. Qxd4 {[%clk 0:02:22.6]} 24... Rxc2 {[%clk
0:01:37.2]} 25. Re5 {[%clk 0:02:14.9]} 25... Rc1 {[%clk 0:01:11]} 26. Rxc1
{[%clk 0:02:06.4]} 26... Rxc1+ {[%clk 0:01:11.9]} 27. Kg2 {[%clk 0:02:06.7]}
27... Qc6 {[%clk 0:01:05.2]} 28. Rxd5 {[%clk 0:01:58]} 28... Rc2 {[%clk
0:01:01]} 29. Qe4 {[%clk 0:01:54.8]} 29... Qf6 {[%clk 0:00:53.3]} 30. Rf5 {[%clk
0:01:18.6]} 30... Qg6 {[%clk 0:00:51.5]} 31. Rxb5 {[%clk 0:01:13.5]} 31... Qa6
{[%clk 0:00:49.3]} 32. Re5 {[%clk 0:00:59]} 32... g6 {[%clk 0:00:42.9]} 33. Re8+
{[%clk 0:00:55.3]} 33... Kg7 {[%clk 0:00:37.5]} 34. Qe5+ {[%clk 0:00:52.6]}
34... Qf6 {[%clk 0:00:37.6]} 35. Rg8+ {[%clk 0:00:52.6]} 1-0